Cogmind - Beta 14 @@@ ROGUE MODE // 2024.08.13 @ 10:31:43 Player: Zaros426 Result: Destroyed by G-50 Soldier with Heavy Laser Performance ------------- Evolutions (5) 2500 Regions Visited (17) 3400 Robots Destroyed (257) 1285 Value Destroyed (11423) 11423 Prototype IDs (6) 120 Alien Tech Used (1) 200 Bonus (4116) 4116 TOTAL SCORE: 23044 Bonus ------- High Alert Combat Kills 1932 Follower Combat Kills 568 Entered Garrisons 600 Used RIF Installer 1500 Friendly Fire -484 Cogmind --------- Core Integrity 0/1000 Matter 169/300 Energy 100/100 System Corruption 38% Temperature Cool (9) Movement Walking (470) Ox5 Location -5/Upper Caves Parts ------- > --- POWER (2) -------- (None) > --- PROPULSION (5) --- Flexi-carbon Leg > --- UTILITY (7) ------ Advanced Heat Sink Huge Storage Unit Makeshift Core Shielding Improved Focal Shield Hacking Suite > --- WEAPON (3) ------- Heavy Flak Cannon Heavy Flak Cannon Thunder Hammer > --- INVENTORY (25) --- Improved Kinecellerator Makeshift ECM Suite EM Disruption Field Improved Hacking Suite Relay Coupler [Sentry] (28) Relay Coupler [Hunter] (23) Relay Coupler [Heavy] (19) Relay Coupler [Behemoth] (16) Plasma Rifle Plasma Rifle Plasma Rifle KE Penetrator KE Penetrator Heavy Flak Cannon Heavy Flak Cannon Smartbomb Launcher Improved Remote Datajack Great Maul Thunder Hammer Thunder Hammer Dirty Bomb Trap Fire Trap Peak State ------------ > --- POWER ------------ Neutrino Core Light Quantum Reactor > --- PROPULSION ------- Medium Treads Armored Medium Treads Wheel Wheel Wheel > --- UTILITY ---------- Advanced Heat Sink Advanced Heat Sink Huge Storage Unit Hardened Light Armor Plating Hardened Light Armor Plating Hardened Light Armor Plating Hacking Suite > --- WEAPON ----------- Plasma Rifle Heavy Phase Cannon Thunder Hammer > --- INVENTORY -------- Wheel Wheel Advanced Heat Sink Improved Kinecellerator Makeshift ECM Suite Improved Focal Shield EM Disruption Field Improved Hacking Suite Relay Coupler [Sentry] Relay Coupler [Hunter] Relay Coupler [Heavy] Relay Coupler [Behemoth] Hacking Drone Bay Plasma Rifle Plasma Rifle Plasma Rifle KE Penetrator KE Penetrator Mass Driver Smartbomb Launcher Improved Remote Datajack Great Maul Thunder Hammer Thunder Hammer [Rating: 79] Favorites ----------- Power Improved Deuterium Engine Engine Improved Deuterium Engine Power Core Light Nuclear Core Reactor Light Quantum Reactor Propulsion Wheel Treads Light Treads Leg Aluminum Leg Wheel Wheel Utility Huge Storage Unit Device Advanced Heat Sink Storage Huge Storage Unit Processor Signal Interpreter Hackware Hacking Suite Protection Hardened Heavy Armor Plating Weapon Heavy Plasma Cannon Energy Gun Beam Rifle Energy Cannon Heavy Plasma Cannon Ballistic Gun Flak Gun Ballistic Cannon Advanced Assault Cannon Launcher Smartbomb Launcher Special Weapon Improved Remote Datajack Impact Weapon Great Maul Special Melee Weapon Improved Datajack Build | -11 -10 -10 -10 -8 -7 -7 -7 -7 -7 -6 -6 -6 -6 -6 -5 -5 -5 ------- Run | Yrd Mat Min Sub Mat Fac Gar Fac Low Zio Pro Fac Gar Fac Gar Fac Upp Upp Slots Evolved 10 | . . . . 4 2 . . . . . 2 . . . 2 . . Power 1 | . . . . . 1 . . . . . . . . . . . . Propulsion 3 | . . . . 1 . . . . . . 1 . . . 1 . . Utility 5 | . . . . 3 . . . . . . 1 . . . 1 . . Weapon 1 | . . . . . 1 . . . . . . . . . . . . Parts Attached 309 | 7 10 11 4 48 7 62 3 8 6 9 10 14 5 26 64 9 6 Power 33 | 1 2 . . 3 1 6 . . 1 2 1 4 1 2 8 1 . Engine 16 | 1 2 . . 2 1 1 . . 1 2 . 3 . 1 1 1 . Core 13 | . . . . 1 . 4 . . . . 1 1 1 1 4 . . Reactor 4 | . . . . . . 1 . . . . . . . . 3 . . Propulsion 72 | 2 2 3 1 12 1 13 3 4 1 . 2 2 . 2 19 4 1 Treads 24 | . 1 . . 5 1 1 2 1 . . 1 2 . 2 6 2 . Leg 17 | 2 . . . . . 11 . . . . . . . . 3 . 1 Wheel 31 | . 1 3 1 7 . 1 1 3 1 . 1 . . . 10 2 . Hover . | . . . . . . . . . . . . . . . . . . Flight . | . . . . . . . . . . . . . . . . . . Utility 81 | 2 4 . . 15 1 15 . 2 2 2 3 4 2 5 20 3 1 Device 49 | 2 1 . . 8 1 9 . 1 2 1 2 3 1 1 14 2 1 Storage 4 | . 2 . . . . 1 . . . . . . . . 1 . . Processor 2 | . 1 . . 1 . . . . . . . . . . . . . Hackware 3 | . . . . . . 1 . . . 1 . . . 1 . . . Protection 23 | . . . . 6 . 4 . 1 . . 1 1 1 3 5 1 . Artifact . | . . . . . . . . . . . . . . . . . . Weapon 123 | 2 2 8 3 18 4 28 . 2 2 5 4 4 2 17 17 1 4 Energy Gun 26 | 2 2 3 1 7 1 3 . . . . . . . . 7 . . Energy Cannon 23 | . . . . . 2 10 . . . 4 3 2 . . 2 . . Ballistic Gun 23 | . . . . 11 . 6 . . . . . . . 3 3 . . Ballistic Cannon 13 | . . . . . . 2 . . . . . . . 7 1 1 2 Launcher 21 | . . 5 2 . . 3 . 2 1 1 . 1 2 3 1 . . Special Weapon 1 | . . . . . . . . . . . . . . . 1 . . Impact Weapon 14 | . . . . . 1 3 . . . . 1 1 . 4 2 . 2 Slashing Weapon . | . . . . . . . . . . . . . . . . . . Piercing Weapon . | . . . . . . . . . . . . . . . . . . Special Melee Weapon 2 | . . . . . . 1 . . 1 . . . . . . . . Unidentified Prototypes 3 | . . . . . . . . . 1 . . . . . 1 1 . Corrupted Parts 9 | . . . . . . 3 . . 1 . . . . . 4 . 1 System Corruption 40 | . . . . . . 11 . . 1 . . . . . 27 . 1 Parts Lost 114 | . 1 1 1 22 . 24 . . . . 1 5 . 8 31 16 4 Power 18 | . 1 . . 2 . 4 . . . . . 1 . 2 5 2 1 Propulsion 40 | . . 1 1 7 . 9 . . . . . 1 . 2 10 8 1 Utility 32 | . . . . 6 . 7 . . . . 1 1 . 3 9 3 2 Weapon 24 | . . . . 7 . 4 . . . . . 2 . 1 7 3 . Highest Loss Streak 9 | . 1 1 1 5 . 8 . . . . 1 1 . 2 9 8 4 To Critical Strikes . | . . . . . . . . . . . . . . . . . . Average Slot Usage (%) 86 | . 98 99 97 92 94 86 100 86 76 79 78 79 78 75 86 67 51 Engine 7 | . 13 14 14 6 9 1 . . . 14 6 10 8 10 3 4 . Core 2 | . . . . 2 . 5 7 7 6 . 5 2 4 2 5 . . Reactor 1 | . . . . . . 1 7 7 7 . . . . . . . . Treads 6 | . 6 11 . 8 8 5 6 14 3 . 5 5 13 9 9 2 . Leg 4 | . 15 . . . . 13 15 . . . . . . . 1 . 3 Wheel 8 | . 5 16 25 16 13 . 1 7 11 15 13 9 6 4 8 6 . Device 14 | . 9 . . 21 23 18 23 17 15 15 18 20 18 6 15 16 12 Storage 8 | . 13 14 14 9 7 7 7 7 7 7 6 6 6 6 5 5 5 Processor 2 | . 4 14 14 3 . . . . . . . . . . . . . Hackware 1 | . . . . . . . . . . . . . . 3 5 5 5 Protection 6 | . . . . 6 7 7 7 6 7 7 6 6 7 14 11 6 5 Energy Gun 5 | . 27 9 . 9 8 . . . . . . . . . 4 . . Energy Cannon 4 | . . . . . 6 8 15 . . 14 7 15 1 . 2 4 . Ballistic Gun 1 | . . . . 8 6 3 . . . . . . . 1 . . . Ballistic Cannon 1 | . . . . . . 2 . . . . . . . 5 2 3 10 Launcher 3 | . . 18 27 . . . . 7 2 3 5 . 3 3 . . . Impact Weapon 2 | . . . . . . 4 7 7 7 . . 1 6 3 2 5 5 Peak Build Rating 79 | 9 13 13 13 27 40 60 60 64 64 63 75 75 77 78 79 74 72 Average Rating 45 | 4 11 12 12 20 33 44 58 57 57 58 69 70 71 67 67 60 54 On Entrance 45 | . 9 13 13 13 27 40 60 57 64 63 59 72 64 77 61 74 52 Naked Turns . | . . . . . . . . . . . . . . . . . . Heaviest Build 157 | 9 94 95 95 109 124 134 134 136 141 149 153 154 148 157 156 124 104 Greatest Support 78 | 20 20 26 26 32 32 43 48 28 44 44 56 56 28 58 78 78 20 Greatest Overweight (x) 34 | . 9 9 9 9 7 30 13 13 4 3 5 5 5 5 14 12 34 Average Overweight (x) 4 | . 4 7 4 3 3 3 4 11 2 3 2 3 4 4 3 9 6 Largest Inventory Capacity 25 | 5 25 25 25 25 25 25 25 25 25 25 25 25 25 25 25 25 25 Average Capacity 24 | 5 19 25 25 25 25 25 25 25 25 25 25 25 25 25 25 25 25 Most Carried 25 | . 23 25 24 25 25 25 25 25 25 25 25 25 25 25 25 25 23 Average Carried 21 | . 13 22 22 22 24 23 24 24 24 24 24 22 22 21 19 21 21 Final Capacity 25 | 5 25 25 25 25 25 25 25 25 25 25 25 25 25 25 25 25 25 Final Carried 25 | . 21 23 24 22 25 25 24 25 25 25 25 19 25 18 25 24 23 Class Distribution -------------------- 37% | Mutant 28% | Scavenger-Mutant 16% | Tank 7% | Bothacker-Mutant 7% | Scavenger-Tank Dominant Class ---------------- Mutant | -10/Materials Mutant | -10/Mines Mutant | -10/Subcaves Scavenger-Mutant | -8/Materials Scavenger-Tank | -7/Factory Scavenger-Mutant | -7/Garrison Scavenger-Mutant | -7/Factory Scavenger-Mutant | -7/Lower Caves Mutant | -7/Zion Tank | -6/Proximity Caves Tank | -6/Factory Tank | -6/Garrison Mutant | -6/Factory Mutant | -6/Garrison Scavenger-Mutant | -5/Factory Bothacker-Mutant | -5/Upper Caves Bothacker-Mutant | -5/Upper Caves Resources | -11 -10 -10 -10 -8 -7 -7 -7 -7 -7 -6 -6 -6 -6 -6 -5 -5 -5 ----------- Run | Yrd Mat Min Sub Mat Fac Gar Fac Low Zio Pro Fac Gar Fac Gar Fac Upp Upp Matter Collected 6428 | 270 162 391 31 1042 110 1053 69 345 70 149 145 300 42 959 1015 96 179 Remotely . | . . . . . . . . . . . . . . . . . . Salvage Created 9910 | 87 822 174 87 1463 278 1168 91 319 67 88 308 1253 70 921 2049 486 179 Parts 455 | 6 63 11 6 84 13 51 2 23 2 3 11 43 1 26 95 14 1 Haulers Intercepted 4 | . 2 . . 1 . . . . . . . . . . 1 . . Recyclers Shooed 10 | . 1 . . 6 . . . . . . . . . . 3 . . Parts Field Recycled . | . . . . . . . . . . . . . . . . . . Retrieved Matter . | . . . . . . . . . . . . . . . . . . Parts Self-Destructed 21 | . . . 1 . . . . 7 . 2 . . . . . 11 . Prevented 7 | . . . . . . . . 1 . . . . . . . 5 1 Kills | -11 -10 -10 -10 -8 -7 -7 -7 -7 -7 -6 -6 -6 -6 -6 -5 -5 -5 ------- Run | Yrd Mat Min Sub Mat Fac Gar Fac Low Zio Pro Fac Gar Fac Gar Fac Upp Upp Combat Hostiles Destroyed 204 | 1 14 8 4 29 5 32 . 11 1 2 6 19 2 27 30 9 4 Melee 11 | . . . . . 2 . . . 1 . . . . . 3 4 1 Guns 69 | 1 13 1 . 28 1 3 . . . . . . . 6 16 . . Cannons 57 | . . . . . 2 19 . . . 1 3 16 . 7 5 2 2 AOE 57 | . . 7 4 . . 9 . 11 . 1 3 1 2 14 5 . . Classes Destroyed 25 | 2 7 1 1 6 . 4 1 1 . 1 . . . 1 . . . Worker 13 | . 5 1 . 1 1 . . . . . . . . . 5 . . Builder 10 | . 2 1 . 2 . . 1 . . . 1 . . . 3 . . Tunneler 5 | 2 . 1 . . . . 1 . . . 1 . . . . . . Hauler 4 | . 2 . . 1 . . . . . . . . . . 1 . . Recycler 8 | . 2 1 . 2 . . . . . . . . . . 3 . . Mechanic 2 | . . . . . . . 1 . . . . . . . 1 . . Operator 3 | . 1 . . . 1 . . . . . 1 . . . . . . Watcher 9 | . 3 . . . . 1 . . . . . . . . 5 . . Swarmer 38 | . 6 3 . 4 . 4 . 4 . . . 5 . 5 7 . . Cutter 3 | . . . . . . . . . . . . . . 3 . . . Grunt 93 | 1 8 3 . 13 5 15 . . . 1 3 6 2 15 14 3 4 Brawler 5 | . . . . 1 . 2 . . . . 1 . . . . 1 . Duelist 2 | . . . . 1 . 1 . . . . . . . . . . . Protector 1 | . . . . . . 1 . . . . . . . . . . . Sentry 24 | . . . . 7 . 4 . . . 1 2 6 . 3 1 . . Demolisher 1 | . . . . . . 1 . . . . . . . . . . . Specialist 1 | . . . . 1 . . . . . . . . . . . . . Hunter 6 | . . . . 1 . . . . . . . 1 . . 3 1 . Programmer 10 | . . . . . . 2 . 1 . . . 1 . 1 5 . . Heavy 1 | . . . . 1 . . . . . . . . . . . . . Behemoth 1 | . . . . . . 1 . . . . . . . . . . . Subdweller 4 | . . . 4 . . . . . . . . . . . . . . Decomposer 1 | . . . . . . . . 1 . . . . . . . . . Samaritan 1 | . . . . . . . . . . 1 . . . . . . . Assembled 3 | . . 3 . . . . . . . . . . . . . . . Thug 9 | . . . . . . . . 5 . . . . . . . 4 . Butcher 1 | . . . . . . . . . 1 . . . . . . . . Guerrilla 1 | . . . . . . . . . . . . . . 1 . . . Mutant 1 | . . . . . . . . 1 . . . . . . . . . Infiltrator 1 | . . . . . . 1 . . . . . . . . . . . Best Kill Streak 8 | 3 6 3 4 5 3 8 1 6 1 1 5 7 2 7 8 4 4 Combat Bots Only 8 | 1 3 3 4 5 3 8 . 6 1 1 3 7 2 7 6 4 4 Max Kills in Single Turn 3 | 1 2 3 1 1 2 2 1 2 1 1 3 1 1 3 3 1 1 Gunslinging 1 | . 1 . . . . . . . . . . . . . . . . Exploded 3 | . . 3 1 . . 2 . 2 . 1 3 1 1 2 3 . . Melee 1 | . . . . . 1 . . . 1 . . . . . 1 1 1 Uniques/NPCs Destroyed . | . . . . . . . . . . . . . . . . . . Combat | -11 -10 -10 -10 -8 -7 -7 -7 -7 -7 -6 -6 -6 -6 -6 -5 -5 -5 -------- Run | Yrd Mat Min Sub Mat Fac Gar Fac Low Zio Pro Fac Gar Fac Gar Fac Upp Upp Hostile Shots Fired 1763 | 2 45 10 6 229 16 288 . 26 38 66 20 255 4 233 377 106 42 Missed 498 | 2 14 2 2 56 3 83 . 13 11 31 9 76 1 72 92 22 9 Damage Taken 19693 | . 316 352 148 2961 152 2969 . 191 400 253 122 2056 140 2171 4665 2165 632 Core 2464 | . 74 72 60 508 . 439 . 73 12 6 . 143 . 63 565 377 72 Absorbed by Shields 679 | . . . . 190 59 348 . 48 . . . 34 . . . . . Redirected to Shielding 5 | . . . . . . . . . . . . . . . . . 5 Ignored by Resistances 336 | . . . . . . . . . . . . . . . 322 14 . Core Remaining (%) 44 | 100 . . 17 7 . . . . . 24 . . . 75 . . . Volleys Fired 696 | 8 53 26 8 137 9 106 5 11 . 10 16 57 3 61 161 7 18 Largest 3 | 2 2 2 2 2 3 3 2 1 . 2 3 3 1 3 3 2 2 Hottest 255 | 100 112 112 66 112 167 224 180 46 . 180 245 255 46 124 225 165 106 Shots Fired 1241 | 16 108 49 13 255 27 197 10 11 . 12 22 138 3 91 244 14 31 Gun 656 | 16 108 25 2 255 13 46 . . . . . . . 27 161 3 . Cannon 489 | . . . . . 14 133 10 . . 5 19 137 . 49 80 11 31 Launcher 96 | . . 24 11 . . 18 . 11 . 7 3 1 3 15 3 . . Special . | . . . . . . . . . . . . . . . . . . Kinetic 381 | . . . . 124 9 73 . . . . . . . 76 64 4 31 Thermal 708 | 16 108 25 2 131 11 98 10 . . 5 19 137 . . 136 10 . Explosive 96 | . . 24 11 . . 18 . 11 . 7 3 1 3 15 3 . . Electromagnetic 56 | . . . . . 7 8 . . . . . . . . 41 . . Robot Hit Streak 19 | 6 12 5 4 12 5 15 2 6 . 11 9 19 2 10 11 5 6 Robot Miss Streak 22 | 3 3 3 1 6 3 6 2 1 . 1 3 3 . 11 6 2 22 Penetration Max 1 | . . . . . . . . . . . . . . . 1 . . Secondary Targets 11 | . 4 . . 4 . . . . . . . . . . 3 . . Max Gunslinging Chain 1 | . 1 . . 1 . . . . . . . . . . 1 . . Shots Hit Robots 822 | 9 65 18 7 177 15 140 5 8 1 8 13 89 3 72 140 29 23 Core Hits 521 | 4 36 20 6 85 12 92 2 24 . 7 14 38 4 71 81 11 14 Critical Kills 7 | . . . . 1 . . . . . . 1 1 . . 3 1 . Critical Parts Destroyed 11 | . . . . . . . . . . . . . 1 2 3 3 2 Critical Strikes 39 | . 6 1 . 5 . 2 . . . . 1 1 1 6 10 4 2 Burn 16 | . 6 1 . 4 . 1 . . . . . . . . 4 . . Meltdown 2 | . . . . . . . . . . . 1 1 . . . . . Destroy 2 | . . . . 1 . . . . . . . . . . 1 . . Blast 5 | . . . . . . 1 . . . . . . . 4 . . . Smash 14 | . . . . . . . . . . . . . 1 2 5 4 2 Melee Attacks 138 | . . . . . 5 21 7 1 1 . 2 17 2 31 15 32 4 Impact 134 | . . . . . 5 17 7 1 1 . 2 17 2 31 15 32 4 Slashing . | . . . . . . . . . . . . . . . . . . Piercing . | . . . . . . . . . . . . . . . . . . Sneak Attacks 8 | . . . . . . 4 1 1 . . . . 1 . . 1 . Combat Hostiles . | . . . . . . . . . . . . . . . . . . Follow-up Attacks 1 | . . . . . . . . . . . . . . . . . 1 Damage Inflicted 27714 | 111 890 1040 505 2619 380 4488 197 1407 77 556 1060 2917 486 4025 5016 1361 579 Guns 7542 | 111 887 233 . 2619 115 867 . . . . . . . 349 2319 42 . Cannons 8466 | . . . . . 144 2311 129 . . 95 404 2624 . 821 1478 160 300 Explosions 8510 | . . 807 505 . . 1236 . 1317 . 461 656 186 361 2225 756 . . Melee 3173 | . . . . . 121 74 68 90 57 . . 107 125 630 463 1159 279 Ramming 23 | . 3 . . . . . . . 20 . . . . . . . . Kinetic 5349 | . . . . 1351 86 1101 . . . . . . . 1170 1322 19 300 Thermal 10600 | 111 887 484 . 1268 54 1945 129 . . 95 404 2624 . . 2416 183 . Explosive 7603 | . . 556 505 . . 1236 . 1317 . 461 656 186 361 2225 100 . . Electromagnetic 966 | . . . . . 119 132 . . . . . . . . 715 . . Impact 3173 | . . . . . 121 74 68 90 57 . . 107 125 630 463 1159 279 Slashing . | . . . . . . . . . . . . . . . . . . Piercing . | . . . . . . . . . . . . . . . . . . Highest Corruption 38 | . 3 3 3 . . 11 6 6 6 1 4 4 4 4 34 37 38 Average Corruption 8 | . 2 3 3 . . 5 6 6 5 1 4 4 4 4 26 36 37 Corruption Purged 8 | . . . . . . 8 . . . . . . . . . . . Corruption Blocked . | . . . . . . . . . . . . . . . . . . Effects 366 | . 32 27 8 . . 45 13 29 7 10 10 29 5 29 49 52 21 Message Errors 78 | . 5 3 1 . . 14 2 6 2 1 4 4 2 7 8 14 5 Matter Fused 93 | . 9 7 3 . . 8 7 11 3 1 4 9 1 11 10 7 2 Heat Flow Errors 48 | . 7 3 1 . . 8 2 4 . 2 . 3 . 4 7 7 . Energy Discharges 39 | . 4 4 . . . 4 . 4 . 1 2 4 1 1 5 7 2 Parts Rejected 5 | . . . 1 . . . . 1 . . . . . . 3 . . Parts Fused 1 | . . . . . . . . 1 . . . . . . . . . Data Loss (minor) 53 | . 3 7 1 . . 6 2 2 2 2 . 7 . 1 7 9 4 Data Loss (major) 13 | . 2 . . . . 1 . . . 3 . . 1 3 . 1 2 Misfires 15 | . 2 2 . . . 3 . . . . . 1 . 1 1 3 2 Alerts 2 | . . 1 . . . . . . . . . . . . . 1 . Misdirections 2 | . . . . . . . . . . . . . . . 1 . 1 Weapon Failures 17 | . . . 1 . . 1 . . . . . 1 . 1 7 3 3 Overload Shots 14 | . . . . . . . . . . . . . . . 14 . . Overflow Damage 1498 | . . 57 . . . 112 51 9 47 7 . 53 141 162 477 222 160 Projectiles 145 | . . . . . . 71 3 . . . . 15 . . 56 . . Explosions 364 | . . 57 . . . 37 . 9 . 7 . 24 16 10 204 . . Melee 989 | . . . . . . 4 48 . 47 . . 14 125 152 217 222 160 Knockbacks 37 | . . . . . . 3 . . 1 . . 2 1 10 5 2 13 Impact 13 | . . . . . . . . . 1 . . 2 1 4 2 2 1 Kinetic 22 | . . . . . . 3 . . . . . . . 5 2 . 12 Secondary 2 | . . . . . . . . . . . . . . 1 1 . . Self-Inflicted Damage 334 | . . 101 . . . 3 . 35 10 . . . . 54 131 . . Shots 11 | . . 4 . . . 1 . 1 . . . . . 2 3 . . Rammed 1 | . . . . . . . . . 1 . . . . . . . . Targets Rammed 2 | . 1 . . . . . . . 1 . . . . . . . . Kicked 1 | . 1 . . . . . . . . . . . . . . . . Crushed . | . . . . . . . . . . . . . . . . . . Highest Temperature 464 | 312 324 426 67 464 177 396 172 243 41 238 120 420 7 345 338 197 . Average Temperature 115 | 159 90 117 47 168 65 105 95 92 21 74 59 134 7 120 116 65 . Received Heat Transfer 5265 | . 129 63 6 1144 78 486 . 18 200 66 27 507 42 642 774 801 282 Effects 22 | . 4 3 . 5 . 2 . . . . . 4 . 3 1 . . Shutdowns 4 | . . 1 . 1 . 1 . . . . . 1 . . . . . Energy Bleed 4 | . 1 1 . . . . . . . . . 1 . . 1 . . Interference 11 | . 3 . . 3 . . . . . . . 2 . 3 . . . Short Circuit 2 | . . . . 1 . 1 . . . . . . . . . . . Damage (minor) 1 | . . 1 . . . . . . . . . . . . . . . Siege Activations . | . . . . . . . . . . . . . . . . . . Robots Corrupted 11 | . . . . . . . 1 . . . . 1 . 3 1 3 2 Combat Hostiles 6 | . . . . . . . . . . . . 1 . . 1 3 1 Parts Fried 13 | . . . . . . . 3 . . . . . . 2 6 2 . Impact Corruptions 31 | . . . . . . 1 2 . 1 . . 1 1 5 6 9 5 Robots Melted 7 | . 1 . . 1 . 1 . . . . 1 3 . . . . . Combat Hostiles 5 | . 1 . . 1 . 1 . . . . . 2 . . . . . Parts Melted 53 | . 9 3 . 9 . 4 1 . . . 3 15 . . 9 . . Heat Transferred 19750 | 333 2775 1016 . 3515 111 3111 200 . . 150 583 3813 . . 3895 248 . Parts Sabotaged . | . . . . . . . . . . . . . . . . . . Parts Stolen . | . . . . . . . . . . . . . . . . . . Parts Stripped . | . . . . . . . . . . . . . . . . . . Power Chain Reactions . | . . . . . . . . . . . . . . . . . . Alert | -11 -10 -10 -10 -8 -7 -7 -7 -7 -7 -6 -6 -6 -6 -6 -5 -5 -5 ------- Run | Yrd Mat Min Sub Mat Fac Gar Fac Low Zio Pro Fac Gar Fac Gar Fac Upp Upp Peak Influence 2140 | 31 189 183 . 326 222 2140 1162 . . . 176 1095 772 1666 1079 . . Initial 1123 | . 20 28 . . 147 78 1123 . . . . 54 574 540 874 . . Average 550 | 10 63 77 . 162 144 1009 1135 . . . 89 536 663 1210 699 . . Maximum Alert Level 5 | . . . . 1 1 5 4 . . . . 3 3 5 3 . . Low Security (%) 41 | 100 100 100 . 70 84 2 . . . . 100 13 . . . . . Level 1 9 | . . . . 29 15 8 . . . . . 23 . . 20 . . Level 2 11 | . . . . . . 15 . . . . . 33 76 11 23 . . Level 3 19 | . . . . . . 38 5 . . . . 29 23 13 56 . . Level 4 12 | . . . . . . 19 94 . . . . . . 61 . . . Level 5 4 | . . . . . . 15 . . . . . . . 13 . . . High Security . | . . . . . . . . . . . . . . . . . . Max Security . | . . . . . . . . . . . . . . . . . . Squads Dispatched 20 | . 4 . . 4 1 . 1 . . . . . 1 . 9 . . Investigation 8 | . 3 . . 1 1 . . . . . . . . . 3 . . Extermination 1 | . . . . . . . . . . . . . . . 1 . . Reinforcement 6 | . 1 . . 3 . . . . . . . . . . 2 . . Assault 3 | . . . . . . . 1 . . . . . . . 2 . . Garrison 2 | . . . . . . . . . . . . . 1 . 1 . . Intercept . | . . . . . . . . . . . . . . . . . . Searches Triggered . | . . . . . . . . . . . . . . . . . . Construction Impeded 2 | . . . . . . . . . . . . . . . 2 . . Haulers Reinforced . | . . . . . . . . . . . . . . . . . . Active Scanning Responses . | . . . . . . . . . . . . . . . . . . Cargo Convoy Interrupts . | . . . . . . . . . . . . . . . . . . Stealth | -11 -10 -10 -10 -8 -7 -7 -7 -7 -7 -6 -6 -6 -6 -6 -5 -5 -5 --------- Run | Yrd Mat Min Sub Mat Fac Gar Fac Low Zio Pro Fac Gar Fac Gar Fac Upp Upp Distress Signals 3 | . . . . 1 . 1 . . . . . . . . 1 . . Communications Jammed . | . . . . . . . . . . . . . . . . . . Distress Signals . | . . . . . . . . . . . . . . . . . . Times Spotted 282 | 1 21 7 5 39 7 44 1 10 7 6 7 28 3 34 45 10 7 Peak Tracking Total 7 | 1 3 3 2 7 3 4 1 4 4 3 4 6 2 7 7 4 4 Tactical Retreats 28 | . . . . 4 . 8 . . 1 4 1 2 . 3 4 1 . Traps | -11 -10 -10 -10 -8 -7 -7 -7 -7 -7 -6 -6 -6 -6 -6 -5 -5 -5 ------- Run | Yrd Mat Min Sub Mat Fac Gar Fac Low Zio Pro Fac Gar Fac Gar Fac Upp Upp Traps Triggered 18 | . 2 . . . . 3 . . . . . 10 . 2 1 . . Indirectly . | . . . . . . . . . . . . . . . . . . Trap Hack Attempts . | . . . . . . . . . . . . . . . . . . Triggered . | . . . . . . . . . . . . . . . . . . Disarmed 4 | . 4 . . . . . . . . . . . . . . . . Reprogrammed . | . . . . . . . . . . . . . . . . . . Reused 2 | . . . . 2 . . . . . . . . . . . . . Traps Extracted . | . . . . . . . . . . . . . . . . . . Installed 4 | . . . . 2 2 . . . . . . . . . . . . Triggered 5 | . . . 1 2 . . . 1 . . . . . . . 1 . Most Traps Carried 4 | . . 4 4 4 2 . . . . . . . . . . . 2 Machines | -11 -10 -10 -10 -8 -7 -7 -7 -7 -7 -6 -6 -6 -6 -6 -5 -5 -5 ---------- Run | Yrd Mat Min Sub Mat Fac Gar Fac Low Zio Pro Fac Gar Fac Gar Fac Upp Upp Machines Disabled 36 | . . 8 . . . 5 . . . . 1 4 2 3 12 1 . Max in Single Turn 6 | . . 6 . . . 1 . . . . 1 1 1 1 6 1 . Garrison Access 3 | . . . . 1 . . 1 . . . . . . . 1 . . Garrison Relay 8 | . . . . . . 3 . . . . . 3 . 2 . . . Machines Repaired . | . . . . . . . . . . . . . . . . . . Machines Dismantled . | . . . . . . . . . . . . . . . . . . Machines Sabotaged . | . . . . . . . . . . . . . . . . . . Overloaded Fab Kills . | . . . . . . . . . . . . . . . . . . Hacking | -11 -10 -10 -10 -8 -7 -7 -7 -7 -7 -6 -6 -6 -6 -6 -5 -5 -5 --------- Run | Yrd Mat Min Sub Mat Fac Gar Fac Low Zio Pro Fac Gar Fac Gar Fac Upp Upp Machines Accessed 46 | . 9 . 1 6 3 2 2 1 1 1 3 1 2 3 9 2 . Terminals 27 | . 7 . . 4 2 2 . . . 1 2 1 . 3 5 . . Fabricators 3 | . . . . . . . . . . . . . . . 3 . . Repair Stations . | . . . . . . . . . . . . . . . . . . Recycling Units 3 | . 2 . . 1 . . . . . . . . . . . . . Scanalyzers 3 | . . . . . . . 1 . . . . . 1 . 1 . . Garrison Access 5 | . . . . 1 1 . 1 . . . 1 . 1 . . . . Total Hacks 131 | . 35 . 5 14 7 5 7 1 2 1 7 3 10 6 26 2 . Successful 64 | . 15 . 5 5 3 1 4 1 2 1 3 1 8 2 11 2 . Failed 67 | . 20 . . 9 4 4 3 . . . 4 2 2 4 15 . . Catastrophic 12 | . 3 . . . 2 2 . . . . 1 1 . . 3 . . Database Lockouts . | . . . . . . . . . . . . . . . . . . Manual 37 | . 24 . . 5 . . . . . . 3 . . . 5 . . Terminals 85 | . 33 . . 10 5 5 . . . 1 6 3 . 6 16 . . Fabricators 9 | . . . . . . . . . . . . . . . 9 . . Repair Stations . | . . . . . . . . . . . . . . . . . . Recycling Units 5 | . 2 . . 3 . . . . . . . . . . . . . Scanalyzers 14 | . . . . . . . 5 . . . . . 8 . 1 . . Garrison Access 8 | . . . . 1 2 . 2 . . . 1 . 2 . . . . Terminal Hacks 36 | . 11 . 5 1 2 1 . 1 2 1 1 1 . 2 6 2 . Record 8 | . . . 5 . . . . . . 1 . . . . 1 1 . Part Schematic 4 | . 2 . . . . . . . 2 . . . . . . . . Robot Analysis 4 | . 4 . . . . . . . . . . . . . . . . Prototype ID Bank 2 | . . . . 1 1 . . . . . . . . . . . . Open Door 4 | . . . . . . . . 1 . . . 1 . 1 . 1 . Open DSF 1 | . . . . . . . . . . . 1 . . . . . . Branch Access Points 2 | . 1 . . . . . . . . . . . . . 1 . . Emergency Access Points 2 | . . . . . . 1 . . . . . . . 1 . . . Unreport Threat 3 | . . . . . . . . . . . . . . . 3 . . Locate Traps 3 | . 2 . . . . . . . . . . . . . 1 . . Disarm Traps 1 | . 1 . . . . . . . . . . . . . . . . Zone Layout 2 | . 1 . . . 1 . . . . . . . . . . . . Fabricator Hacks 5 | . . . . . . . . . . . . . . . 5 . . Load Schematic 3 | . . . . . . . . . . . . . . . 3 . . Build 2 | . . . . . . . . . . . . . . . 2 . . Repair Station Hacks . | . . . . . . . . . . . . . . . . . . Recycling Unit Hacks 2 | . . . . 2 . . . . . . . . . . . . . Process 1 | . . . . 1 . . . . . . . . . . . . . Retrieve Matter 1 | . . . . 1 . . . . . . . . . . . . . Scanalyzer 8 | . . . . . . . 2 . . . . . 6 . . . . Insert Component 3 | . . . . . . . 1 . . . . . 2 . . . . Analyze 5 | . . . . . . . 1 . . . . . 4 . . . . Garrison Access Hacks 7 | . . . . 1 1 . 2 . . . 1 . 2 . . . . Unlock Access 3 | . . . . . 1 . . . . . 1 . 1 . . . . Seal Access 2 | . . . . 1 . . 1 . . . . . . . . . . Coupler Status 2 | . . . . . . . 1 . . . . . 1 . . . . Unauthorized Hacks 6 | . 4 . . 1 . . . . . . 1 . . . . . . Terminals 4 | . 2 . . 1 . . . . . . 1 . . . . . . Botnet 4 | . 2 . . 1 . . . . . . 1 . . . . . . Fabricators . | . . . . . . . . . . . . . . . . . . Repair Stations . | . . . . . . . . . . . . . . . . . . Recycling Units 2 | . 2 . . . . . . . . . . . . . . . . Tunnel 2 | . 2 . . . . . . . . . . . . . . . . Scanalyzers . | . . . . . . . . . . . . . . . . . . Garrison Access . | . . . . . . . . . . . . . . . . . . Data Cores Recovered 1 | . . . . . 1 . . . . . . . . . . . . Used . | . . . . . . . . . . . . . . . . . . Hacking Detections 35 | . 7 . . 5 3 2 2 . . . 3 1 1 2 9 . . Full Trace Events 10 | . 2 . . 1 1 2 . . . . . . . 1 3 . . Feedback Events . | . . . . . . . . . . . . . . . . . . Feedback Blocked . | . . . . . . . . . . . . . . . . . . Robot Schematics Acquired . | . . . . . . . . . . . . . . . . . . Robots Built . | . . . . . . . . . . . . . . . . . . Authchips . | . . . . . . . . . . . . . . . . . . Time . | . . . . . . . . . . . . . . . . . . Total Robot Build Rating . | . . . . . . . . . . . . . . . . . . Part Schematics Acquired 7 | . 2 . . . . . 1 . 2 . . . 2 . . . . Parts Built . | . . . . . . . . . . . . . . . . . . Authchips . | . . . . . . . . . . . . . . . . . . Time 137 | . . . . . . . . . . . . . . . 137 . . Total Part Build Rating . | . . . . . . . . . . . . . . . . . . Parts Repaired . | . . . . . . . . . . . . . . . . . . Time . | . . . . . . . . . . . . . . . . . . Parts Recycled . | . . . . . . . . . . . . . . . . . . Recycled Matter 41 | . . . . 41 . . . . . . . . . . . . . Retrieved Matter 41 | . . . . 41 . . . . . . . . . . . . . Retrieved Components . | . . . . . . . . . . . . . . . . . . Parts Scanalyzed 3 | . . . . . . . 1 . . . . . 2 . . . . Part Schematics Acquired 3 | . . . . . . . 1 . . . . . 2 . . . . Parts Damaged . | . . . . . . . . . . . . . . . . . . Bothacking | -11 -10 -10 -10 -8 -7 -7 -7 -7 -7 -6 -6 -6 -6 -6 -5 -5 -5 ------------ Run | Yrd Mat Min Sub Mat Fac Gar Fac Low Zio Pro Fac Gar Fac Gar Fac Upp Upp Used RIF Installer 3 | . . . . . . 1 . . . . . 1 . 1 . . . Coupler Efficiency 1 | . . . . . . . . . . . . . . 1 . . . Hotswap 1 | . . . . . . . . . . . . 1 . . . . . Robots Hacked . | . . . . . . . . . . . . . . . . . . Non-combat . | . . . . . . . . . . . . . . . . . . Combat . | . . . . . . . . . . . . . . . . . . Robot Hacks Applied . | . . . . . . . . . . . . . . . . . . Relay Couplers Released 34 | . . . . . . 13 1 . . . . 10 . 9 1 . . Machine Destruction 34 | . . . . . . 13 1 . . . . 10 . 9 1 . . Fabnet Peak Effective % . | . . . . . . . . . . . . . . . . . . Robots Rewired 5 | . . . . . . 3 . 2 . . . . . . . . . Allies Hacked . | . . . . . . . . . . . . . . . . . . Hacks Repelled . | . . . . . . . . . . . . . . . . . . Allies | -11 -10 -10 -10 -8 -7 -7 -7 -7 -7 -6 -6 -6 -6 -6 -5 -5 -5 -------- Run | Yrd Mat Min Sub Mat Fac Gar Fac Low Zio Pro Fac Gar Fac Gar Fac Upp Upp Total Allies 13 | . . 3 . . . 5 . 2 . . . 2 . 1 . . . Largest Group 3 | . . 3 2 . . 2 . 2 2 . . 2 2 1 . . . Highest-Rated Group 157 | . . 40 32 . . 157 . 47 47 . . 80 80 51 . . . Highest-Rated Ally 95 | . . 16 16 . . 95 . 25 25 . . 51 51 51 . . . Total Orders . | . . . . . . . . . . . . . . . . . . Ally Attacks 56 | . . 3 . . . 13 . . 1 . . 15 4 20 . . . Total Damage 1861 | . . 14 . . . 767 . . . . . 328 459 293 . . . Kills 16 | . . 1 . . . 3 . . . . . 7 3 2 . . . Allies Corrupted 1 | . . . . . . . . . . . . . . . . . 1 Allies Melted . | . . . . . . . . . . . . . . . . . . Intel | -11 -10 -10 -10 -8 -7 -7 -7 -7 -7 -6 -6 -6 -6 -6 -5 -5 -5 ------- Run | Yrd Mat Min Sub Mat Fac Gar Fac Low Zio Pro Fac Gar Fac Gar Fac Upp Upp Robot Analysis Total 4 | . 4 . . . . . . . . . . . . . . . . Derelict Logs Recovered 5 | . . 1 . . . . . . . 2 . . . . . 1 1 Drone Launches 2 | . . . . . . . . . . . . . . . . . 2 Drone Recoveries 1 | . . . . . . . . . . . . . . . . . 1 Exploration | -11 -10 -10 -10 -8 -7 -7 -7 -7 -7 -6 -6 -6 -6 -6 -5 -5 -5 ------------- Run | Yrd Mat Min Sub Mat Fac Gar Fac Low Zio Pro Fac Gar Fac Gar Fac Upp Upp Turns Passed 19457 | 126 2037 1678 298 1580 479 3211 423 1008 339 1720 557 1256 242 1382 1806 976 339 Spaces Moved 8166 | 74 853 792 185 686 265 830 108 360 223 1150 345 599 125 547 605 371 48 Core 21 | 16 . . . . . 3 . . . . . . . . . . 2 Treads 463 | . 30 . . . . 181 27 . . . . . . 65 153 7 . Legs 1213 | 58 498 . . . . 505 58 . . . . . . . 48 . 46 Wheels 6469 | . 325 792 185 686 265 141 23 360 223 1150 345 599 125 482 404 364 . Hover . | . . . . . . . . . . . . . . . . . . Flight . | . . . . . . . . . . . . . . . . . . Fastest Speed 50 | 50 120 135 135 125 145 175 275 160 130 145 130 130 160 160 120 155 470 Average Speed 196 | 104 211 195 146 146 154 322 320 260 143 145 142 148 168 192 198 229 523 Slowest Speed 1750 | 120 480 215 215 215 205 1550 338 275 160 145 175 175 175 320 750 260 1750 Overloaded Moves . | . . . . . . . . . . . . . . . . . . Propulsion Burnouts . | . . . . . . . . . . . . . . . . . . Robots Hopped . | . . . . . . . . . . . . . . . . . . Cave-ins Triggered 1 | . . . . . . . . . . . . 1 . . . . . Exploration Rate (%) 40 | 5 98 101 9 44 7 78 3 45 14 98 10 71 5 77 17 47 5 Regions Visited 17 Branch Regions 7 Pre-discovered Areas 6 | . 2 . 2 . . . . . . . . . . . . 1 1 Known Exits Taken 7 | . 1 1 1 . 1 . . . . . 1 . 1 . 1 . . Unknown Exits Taken 7 | 1 . . . 1 . . 1 1 1 1 . . . . . 1 . Scrap Searched 6 | . . 1 . . . . . 1 2 2 . . . . . . . Spaces Dug 54 | . . 8 . . 1 3 . . . 15 2 9 . 10 2 4 . Terrain Destroyed 844 | . . 210 66 . 1 61 5 127 . 79 34 27 11 106 106 11 . Melee 31 | . . . . . 1 3 . . . . 2 9 . 10 2 4 . Projectile 42 | . . . . . . 3 5 . . 1 2 . . 1 23 7 . AOE 771 | . . 210 66 . . 55 . 127 . 78 30 18 11 95 81 . . Terrain Rammed . | . . . . . . . . . . . . . . . . . . Walls Destroyed . | . . . . . . . . . . . . . . . . . . Machines Disabled . | . . . . . . . . . . . . . . . . . . Actions | -11 -10 -10 -10 -8 -7 -7 -7 -7 -7 -6 -6 -6 -6 -6 -5 -5 -5 --------- Run | Yrd Mat Min Sub Mat Fac Gar Fac Low Zio Pro Fac Gar Fac Gar Fac Upp Upp Total 10155 | 103 980 867 197 998 305 1139 163 422 241 1191 385 825 149 731 936 423 100 Wait 416 | 15 30 32 . 85 2 45 36 6 . 7 5 75 . 27 38 . 13 Move 8151 | 73 852 791 184 685 264 829 107 359 223 1149 344 598 125 546 604 370 48 Hop . | . . . . . . . . . . . . . . . . . . Pick Up 157 | . 24 5 1 26 9 15 1 5 5 4 3 5 10 9 29 4 2 Fast Attach 103 | 7 6 . 1 13 3 25 2 3 1 3 3 1 1 1 27 5 1 Attach 104 | . 1 1 1 16 1 15 . 2 2 3 5 7 2 17 23 5 3 Detach 18 | . . . . . . 4 . 4 . . 1 . . 4 5 . . Swap 103 | . 3 10 2 19 3 22 1 3 3 3 2 6 2 8 14 . 2 Drop 114 | . 10 2 . 15 7 17 4 12 6 8 4 6 4 7 12 . . Fire 696 | 8 53 26 8 137 9 106 5 11 . 10 16 57 3 61 161 7 18 Melee 137 | . . . . . 5 21 7 1 1 . 2 17 2 31 15 32 3 Ram . | . . . . . . . . . . . . . . . . . . Kick 1 | . 1 . . . . . . . . . . . . . . . . Crush . | . . . . . . . . . . . . . . . . . . Escape Stasis 77 | . . . . . . . . . . . . 53 . 16 8 . . Rewire 74 | . . . . . . 40 . 16 . 4 . . . 4 . . 10 Trap 4 | . . . . 2 2 . . . . . . . . . . . . Miscellaneous . | . . . . . . . . . . . . . . . . . . Route ------- -11/Scrapyard -10/Materials (discovered 4 exits: *Mat x3 / *Min) -10/Mines (discovered 3 exits: *Mat x2 / *Sub) -10/Subcaves (discovered 2 exits: *Mat x2) -8/Materials -7/Factory -7/Garrison (discovered 3 exits: *Fac x3) -7/Factory -7/Lower Caves -7/Zion -6/Proximity Caves -6/Factory -6/Garrison (discovered 3 exits: *Fac x3) -6/Factory -6/Garrison (discovered 3 exits: *Fac x3) -5/Factory (discovered 2 exits: *Upp x2) -5/Upper Caves -5/Upper Caves History --------- Turn | Location | Event 2 | -11/Scrapyard | Met Revision 17 57 | -11/Scrapyard | Discovered new exit (range 8) 127 | -11/Scrapyard | Entered Materials 307 | -10/Materials | Build established: Mutant 445 | -10/Materials | Discovered new exit (range 10) 923 | -10/Materials | Discovered new exit (range 5) 1467 | -10/Materials | Discovered new exit (range 7) 1496 | -10/Materials | Identified exit to Materials 1611 | -10/Materials | Identified exit to Mines 1635 | -10/Materials | Discovered exit to Materials (range 4) 2164 | -10/Materials | Entered Mines 2435 | -10/Mines | Assembled infested the area 2437 | -10/Mines | Found a hidden stash of uninstalled traps 2480 | -10/Mines | Discovered exit to Materials (range 7) 2990 | -10/Mines | Discovered exit to Materials (range 15) 3160 | -10/Mines | Learned Materials trap positions 3372 | -10/Mines | Assisted by bots powering up and referring to "LRC-V3" 3537 | -10/Mines | Core integrity fell below 50% 3828 | -10/Mines | Discovered new exit (range 9) 3839 | -10/Mines | Identified exit to Subcaves 3842 | -10/Mines | Entered Subcaves 3842 | -10/Subcaves | Accompanied by 2 allies 3844 | -10/Subcaves | Discovered new exit (range 16) 3854 | -10/Subcaves | Ambushed by Subdweller buried in earth 3923 | -10/Subcaves | Learned location of Zion (-7) 3923 | -10/Subcaves | Met a Zionite searching for "candidates" 3951 | -10/Subcaves | Discovered new exit (range 11) 3955 | -10/Subcaves | Visited Clippyterm 3960 | -10/Subcaves | Learned location of Deep Caves (-7) 3960 | -10/Subcaves | Learned Research security intel 3974 | -10/Subcaves | Identified exit to Materials 4128 | -10/Subcaves | Core integrity fell below 20% 4140 | -10/Subcaves | Entered Materials 4140 | -8/Materials | Evolved 4 slots: Propulsion x1, Utility x3 4141 | -8/Materials | Loaded intel: 3 trap records 4414 | -8/Materials | Lost 3 parts (2n1u) 4812 | -8/Materials | Build established: Scavenger-Mutant 4859 | -8/Materials | Core integrity fell below 50% 4887 | -8/Materials | Lost 5 parts (2n3u) 4977 | -8/Materials | Lost 3 parts (3w) 5141 | -8/Materials | Discovered new exit (range 10) 5413 | -8/Materials | Core integrity fell below 20% 5595 | -8/Materials | Lost 3 parts (1p1u1w) 5720 | -8/Materials | Entered Factory 5720 | -7/Factory | Evolved 2 slots: Power x1, Weapon x1 6017 | -7/Factory | Build established: Scavenger-Tank 6168 | -7/Factory | Identified exit to Garrison 6199 | -7/Factory | Entered Garrison 6283 | -7/Garrison | Triggered checkpoint 6318 | -7/Garrison | Destroyed 8 combat bots 6383 | -7/Garrison | Triggered checkpoint 6814 | -7/Garrison | Discovered new exit (range 8) 6970 | -7/Garrison | Triggered checkpoint 7019 | -7/Garrison | Garrison Relay disabled 7296 | -7/Garrison | Build established: Scavenger-Mutant 7308 | -7/Garrison | Spotted B-75 Beast 7388 | -7/Garrison | Destroyed B-75 Beast 7412 | -7/Garrison | Lost 8 parts (1p2n4u1w) 7687 | -7/Garrison | Found embedded Infiltrators 7795 | -7/Garrison | Triggered checkpoint 7802 | -7/Garrison | P-60 Hacker assimilated allied 6W-6DY(x) 7807 | -7/Garrison | P-60 Hacker assimilated allied 1Y-Q77(x) 7859 | -7/Garrison | Core integrity fell below 50% 7890 | -7/Garrison | System corruption reached 10% 7895 | -7/Garrison | Lost 6 parts (1p1n2u2w) 8096 | -7/Garrison | Garrison Relay disabled 8144 | -7/Garrison | Discovered new exit (range 11) 8497 | -7/Garrison | Discovered new exit (range 14) 8957 | -7/Garrison | Triggered checkpoint 9089 | -7/Garrison | Triggered checkpoint 9180 | -7/Garrison | Installed Relay Interface Framework 9224 | -7/Garrison | Garrison Relay disabled 9410 | -7/Garrison | Entered Factory 9764 | -7/Factory | Discovered new exit (range 6) 9810 | -7/Factory | First assault squad dispatched 9833 | -7/Factory | Entered Lower Caves 10502 | -7/Lower Caves | Attacked by a faux Warlord 10777 | -7/Lower Caves | Found DCF Scrap (12 items) 10830 | -7/Lower Caves | A Derelict revealed a hidden shortcut to a safe place 10841 | -7/Lower Caves | Entered Zion 10841 | -7/Zion | Accompanied by 2 allies 10992 | -7/Zion | Given the Hacking Drone Bay 10994 | -7/Zion | Found Prototype Device 10995 | -7/Zion | Identified Hacking Drone Bay 11059 | -7/Zion | Discovered new exit (range 15) 11093 | -7/Zion | Build established: Mutant 11117 | -7/Zion | System corruption cleaned by Quarantine Array 11122 | -7/Zion | RIF detected upon attempting to enter Zion 11122 | -7/Zion | Attacked by Zionites 11122 | -7/Zion | Spotted DC-HQS(B) 11122 | -7/Zion | Spotted NF-C11(B) 11172 | -7/Zion | AD-0RF came to Zion's defense 11180 | -7/Zion | Entered Proximity Caves 11201 | -6/Proximity Caves | Attracted the attention of an 0b10 checkpoint 11679 | -6/Proximity Caves | Build established: Tank 11736 | -6/Proximity Caves | Learned Factory terminal intel 11934 | -6/Proximity Caves | Received a Behemoth hack from an annoying Tinkerer 12304 | -6/Proximity Caves | Learned Factory trap positions 12452 | -6/Proximity Caves | Discovered new exit (range 7) 12900 | -6/Proximity Caves | Entered Factory 12900 | -6/Factory | Evolved 2 slots: Propulsion x1, Utility x1 12901 | -6/Factory | Loaded intel: 77 trap records 12902 | -6/Factory | Loaded intel: 25 terminal locations 12990 | -6/Factory | Identified exit to DSF 13444 | -6/Factory | Identified exit to Garrison 13457 | -6/Factory | Entered Garrison 13480 | -6/Garrison | Crushed by falling debris 13601 | -6/Garrison | Triggered checkpoint 13601 | -6/Garrison | Triggered checkpoint 13669 | -6/Garrison | Destroyed 7 combat bots 13754 | -6/Garrison | Discovered new exit (range 12) 13913 | -6/Garrison | Triggered checkpoint 13989 | -6/Garrison | Garrison Relay disabled 14022 | -6/Garrison | Rescued a captive Derelict 14028 | -6/Garrison | Rescued a captive Derelict 14097 | -6/Garrison | Triggered checkpoint 14113 | -6/Garrison | Triggered checkpoint 14236 | -6/Garrison | Discovered new exit (range 11) 14256 | -6/Garrison | Expanded RIF knowledge: Hotswap 14312 | -6/Garrison | Triggered checkpoint 14377 | -6/Garrison | Garrison Relay disabled 14557 | -6/Garrison | Discovered new exit (range 12) 14605 | -6/Garrison | Triggered checkpoint 14625 | -6/Garrison | Garrison Relay disabled 14711 | -6/Garrison | Build established: Mutant 14713 | -6/Garrison | Entered Factory 14713 | -6/Factory | Accompanied by 2 allies 14895 | -6/Factory | Garrison activated, responded to threat 14955 | -6/Factory | Identified exit to Garrison 14955 | -6/Factory | Entered Garrison 14955 | -6/Garrison | Accompanied by 1 ally 15100 | -6/Garrison | Triggered checkpoint 15209 | -6/Garrison | Triggered checkpoint 15275 | -6/Garrison | Triggered checkpoint 15324 | -6/Garrison | Destroyed 7 combat bots 15470 | -6/Garrison | Discovered new exit (range 10) 15528 | -6/Garrison | Rescued a captive Derelict 15643 | -6/Garrison | Triggered checkpoint 15791 | -6/Garrison | Discovered new exit (range 8) 15869 | -6/Garrison | Triggered checkpoint 15925 | -6/Garrison | Garrison Relay disabled 15975 | -6/Garrison | Spotted Executioner 15975 | -6/Garrison | Spotted Executioner 16081 | -6/Garrison | Triggered checkpoint 16083 | -6/Garrison | Triggered checkpoint 16248 | -6/Garrison | Expanded RIF knowledge: Coupler Efficiency 16315 | -6/Garrison | Discovered new exit (range 8) 16337 | -6/Garrison | Entered Factory 16337 | -5/Factory | Evolved 2 slots: Propulsion x1, Utility x1 16636 | -5/Factory | Lost 8 parts (2p1n2u3w) 17020 | -5/Factory | Spotted B-75 Beast 17091 | -5/Factory | Identified exit to Upper Caves 17140 | -5/Factory | Garrison activated, responded to threat 17243 | -5/Factory | Build established: Scavenger-Tank 17351 | -5/Factory | Lost 9 parts (1p4n2u2w) 17393 | -5/Factory | System corruption reached 10% 17444 | -5/Factory | System corruption reached 30% 17836 | -5/Factory | Core integrity fell below 50% 17889 | -5/Factory | Lost 5 parts (1p2n2u) 18137 | -5/Factory | First assault squad dispatched 18143 | -5/Factory | Entered Upper Caves 18216 | -5/Upper Caves | Lost 8 parts (2p4n2u) 18234 | -5/Upper Caves | Ambushed by wild Derelicts 18319 | -5/Upper Caves | Lost 5 parts (3n1u1w) 18562 | -5/Upper Caves | Build established: Bothacker-Mutant 18705 | -5/Upper Caves | Found Alien Artifact 18705 | -5/Upper Caves | Identified Dimensional Node Initializer 18705 | -5/Upper Caves | Initialized slip node 18920 | -5/Upper Caves | Discovered new exit (range 11) 19049 | -5/Upper Caves | Core integrity fell below 20% 19079 | -5/Upper Caves | Lost 3 parts (1u2w) 19119 | -5/Upper Caves | Entered another Upper Caves area 19181 | -5/Upper Caves | Lost 4 parts (1p1n2u) 19366 | -5/Upper Caves | Learned location of Warlord (-5) 19458 | -5/Upper Caves | Destroyed by G-50 Soldier with Heavy Laser Last Messages --------------- 19350_ Hacking Drone system terminally corrupted. 19365_ System corrupted: Energy discharge (-20). 19366_ Acquired derelict log, extracted data. World map updated: -5/Warlord. 19382_ System corrupted: Substantial component data lost. 19389_ Acquired Dirty Bomb Trap. 19395_ Acquired Fire Trap. 19397_ >J:Q/:J&FRPQXEUR B7FLIMA3KG 19416_ System corrupted: FCS attempts to trigger Hvy. Flak Cannon. 19416_ System corrupted: Hvy. Flak Cannon misfires. 19416_ M-22 Extractor knocked back. 19432_ JGYW&UNTWCB<3PGSZLKZ ZPAS<9= 19448_ H9>ZQJMA0MTG32Y4U2RFOH9#L5MGV2SB:3 [Achievement: 5k Club] [Achievement: 10k Club] [Achievement: 20k Club] Map ----- +----------------------------------------------------+ | ?????????????????????????????????????????????????? | | ?????????????????????????????????????????????????? | | ?????????????????????????????????????????????????? | | ?????????????????????????????????????????????????? | | ?????????????????????????????????????????????????? | | ?????????????????????????????????????????????????? | | ?????????????????????????????????????????????????? | | ?????????????????????????????????????????????????? | | ?????????????????????????????????????????????????? | | ?????????????????????????????????????????????????? | | ?????????????????????????????????????????????????? | | ?????????????????????????#######?????????????????? | | ?????????????????????????# ??????????????????? | | ?????????????????????????# ???????????????????? | | ????????????????????????## #????????????????????? | | ???????????????????????## #????????????????????? | | ???????????????????????# ######???????????????? | | ??????????????????????## #???????????????? | | ??????????????????????# ### #???????????????? | | ??????????????????????### ##?# #???????????????? | | ????????????????#???????## #??# #???????????????? | | ???????????????## ??????# #??# #???????????????? | | ???????????????# ####?# #??# ### #??????????? | | ????????????#### ## #??# #????#???????? | | ?????????# g # #??# ### #???????? | | ???????????# g b @ #??# ###??? #???????? | | ???????????????# #####?## #### # #??????? | | ??????????????# #?????## #??????? | | ??????????????# ######?????## ##??????? | | ????????????????????????????# ######???????? | | ????????????????????????????# ## ##????????????? | | ????????????????????????????########?????????????? | | ?????????????????????????????????????????????????? | | ?????????????????????????????????????????????????? | | ?????????????????????????????????????????????????? | | ?????????????????????????????????????????????????? | | ?????????????????????????????????????????????????? | | ?????????????????????????????????????????????????? | | ?????????????????????????????????????????????????? | | ?????????????????????????????????????????????????? | | ?????????????????????????????????????????????????? | | ?????????????????????????????????????????????????? | | ?????????????????????????????????????????????????? | | ?????????????????????????????????????????????????? | | ?????????????????????????????????????????????????? | | ?????????????????????????????????????????????????? | | ?????????????????????????????????????????????????? | | ?????????????????????????????????????????????????? | | ?????????????????????????????????????????????????? | | ?????????????????????????????????????????????????? | +----------------------------------------------------+ Best States ------------- Heat Dissipation 116 Energy Generation 39 Energy Capacity 515 Matter Stores 300 Matter Capacity 300 Sight Range 16 Terrain Scan Range 16 Terrain Scan Density 10 Armor Coverage 1050 Resistance: KI 25 Resistance: EM 25 Core Shielding 10 Evasion (%) 55 Recoil Reduction 3 Kinecelleration 40 Offensive Hacking 10 Defensive Hacking 10 Item Schematics ----------------- Lrg. Storage Unit | -10/Materials | Hacked Huge Storage Unit | -10/Materials | Hacked Smartbomb Launcher | -7/Factory | Scanalyzed Beamcaster | -7/Zion | Free Barrage Gun | -7/Zion | Free Neutrino Core | -6/Factory | Scanalyzed Hrd. Heavy Armor Plating | -6/Factory | Scanalyzed Robot Schematics ------------------ None Fabricated ------------ Nothing Alien Tech Used ----------------- Dimensional Node Initializer Achievements -------------- 10k Club 20k Club 5k Club A New Friend Alien Tech Backstab Close Call Dramatic Entrance Hey, That's Mine! I Survived The Infestation I'm Back, Baby! Infiltrator It's Just You Made in Tau Ceti IV Maybe Next Time I'll Detach My Launcher More Dakka Please Novice Programmer Oops Overkill Part-time Excavator Please Form A Line Power Corrupts Remodeling Risk Taker Serviceable Loadout Significant Disruption Storm Trooper System Compromised Tank Tourist Troublemaker Unlikely Earthworm root@ Challenges ------------ None Game ------ Seed ControlTachyonBasin Manual? 0 Play Time 03:16:04 Cumulative 3.7 hours Start 2024.08.13 @ 07:05:36 End 2024.08.13 @ 10:31:43 Sessions 1 Manual Loads 0 Difficulty Rogue Special Mode None Game No. 2 Rogue 2 Adventurer 0 Explorer 0 Win Type - Total 0 Types 0/0/0/0/0/0/0/0/0 Lore% 1 Gallery% 8 Achievement% 16 Wizard Run 0 Options --------- Layout 1 ASCII 0 Keyboard 0 Movement Mouse Keybinds 0 Fullscreen 1 Font 24/Smallcaps Map View 50x35 Zoom Use 0% Tactical HUD 1 Map Filters NONE Filters NONE Steam 0 RUN: a7573c50-0c7a-40e2-a43f-547b97e88ac6